[Event "Prague Festival Open 2022"]
[Site "Prague"]
[Date "2022.06.13"]
[Round "5.1"]
[White "Karthik Venkataraman"]
[Black "Motylev, Alexander"]
[Result "0-1"]
[ECO "C77"]
[WhiteElo "2480"]
[BlackElo "2633"]
[Annotator "TA"]
[PlyCount "76"]
[EventDate "2022.06.10"]
[EventType "swiss"]
[EventCountry "CZE"]
[SourceTitle "playchess.com"]
[Source "ChessBase"]
[SourceQuality "1"]
[TimeControl "40/5400+30:1800+30"]

{[%evp 16,76,22,25,27,23,21,16,26,17,25,25,18,8,15,0,16,-16,-3,-51,-33,-30,-19,-27,-33,-64,-58,-206,-191,-204,-125,-257,-245,-236,-193,-356,-354,-354,-235,-325,-283,-271,-295,-297,-286,-365,-334,-292,-243,-486,-467,-1050,-1045,-987,-891,-886,-855,-29985,-29986,-29986,-29987,-29994,-29995]} 1. e4 {[%emt 0:02:35]} e5 {[%emt 0:00:07]} 2. Nf3 {[%emt 0:00:05]} Nc6 {[%emt 0:00:05]} 3. Bb5 {[%emt 0:00:05]} Nf6 {[%emt 0:00:17]} 4. d3 {[%emt 0:00:23]} d6 {[%emt 0:00:27]} 5. c3 {[%emt 0:00:22]} g6 {[%emt 0:00:24]} 6. O-O {[%emt 0:00:38]} Bg7 {[%emt 0:00:05]} 7. Re1 {[%emt 0:00:20]} O-O {[%emt 0:00:07]} 8. h3 {[%emt 0:00:30]} a6 $1 {[%emt 0:00:19][%mdl 4] is recently more successful than 8...Bd7.} 9. Ba4 {[%emt 0:00:05]} Re8 {[%emt 0:00:10] C77: Ruy Lopez: 3...a6 4 Ba4 Nf6, unusual lines.} 10. Be3 {[%emt 0:02:42]} h6 {[%emt 0:00:11]} 11. Nbd2 {[%emt 0:03:08]} d5 {[%emt 0:00:19] The position is equal.} 12. a3 {[%emt 0:01:00][%cal Ba2a3,Ba3a4][%mdl 32]} b5 {[%emt 0:01:19]} 13. Bc2 {[%emt 0:01:11]} a5 {[%emt 0:01:12] [#]} 14. a4 $146 {[%emt 0:12:43]} ({Predecessor:} 14. Rc1 a4 15. Bb1 Be6 16. d4 dxe4 17. Nxe5 Bd5 18. c4 bxc4 19. Ndxc4 Nxe5 20. Nxe5 {½-½ (100) David,A (2521)-Lodici,L (2507) Montesilvano 2021}) 14... b4 {[%emt 0:01:44]} 15. Nb3 {[%emt 0:00:12]} Rb8 {[%emt 0:03:45][%cal Ba8b8,Bb8b4,Bb4b2][%mdl 32]} 16. cxb4 {[%emt 0:12:22]} Nxb4 {[%emt 0:07:11]} 17. Bd2 {[%emt 0:13:37]} (17. Nxa5 $11 {is more appropriate.} dxe4 18. dxe4) 17... c5 {[%emt 0:22:05]} ({But not} 17... Nxc2 18. Qxc2 Ra8 19. Bxa5 $16) 18. Nxc5 {[%emt 0:03:03]} Qc7 {[%emt 0:05:24]} 19. Bxb4 {[%emt 0:00:19]} Rxb4 {[%emt 0:00:06]} 20. Nb3 {[%emt 0:11:45]} Rd8 {[%emt 0:09:06] ...dxe4 is the strong threat. Black is more active.} 21. exd5 {[%emt 0:02:55] Black continues to play with concentration.} (21. Nbd2 $1 $15) 21... Nxd5 $19 {[%emt 0:01:24]} 22. Rc1 {[%emt 0:06:17]} Nf4 {[%emt 0:03:31]} 23. Bb1 {[%emt 0:04:50]} (23. d4 $17) 23... Qb6 {[%emt 0:02:52]} 24. Nbd2 {[%emt 0:02:46]} Rxb2 {[%emt 0:33:08] Threatens to win with ...Ba6.} 25. Nxe5 $2 {[%emt 0:02:46]} (25. d4 {was worth a try.} Be6 26. dxe5) 25... Bxe5 {[%emt 0:02:04]} 26. Rxe5 {[%emt 0:00:05]} Qf6 $40 {[%emt 0:01:27][%mdl 128] Black wants a kill.} 27. Re3 {[%emt 0:10:06]} Qg5 {[%emt 0:01:21][%csl Gf4][%cal Rg5g2][%mdl 64] [#] Deflection} 28. g3 {[%emt 0:00:08]} Nxh3+ {[%emt 0:01:15]} 29. Kf1 {[%emt 0:00:04]} Qd5 {[%emt 0:01:25]} ({Inferior is} 29... Bg4 30. Qe1 $19) 30. f3 {[%emt 0:02:44]} Ng5 {[%emt 0:01:53]} 31. Rc2 {[%emt 0:02:00]} Qd4 {[%emt 0:00:19]} 32. Qe2 {[%emt 0:00:40]} (32. Ke2 {keeps fighting.}) 32... Bh3+ {[%emt 0:00:11]} 33. Kg1 {[%emt 0:00:37]} (33. Kf2 $142 Rdb8 34. Qe1) 33... Re8 {[%emt 0:00:37][%cal Bd8e8,Be8e3,Be3e2][%mdl 32]} 34. Kf2 {[%emt 0:00:29]} Bf5 {[%emt 0:00:50] ( -> ...Rxc2)} 35. Rxb2 {[%emt 0:03:27]} Nh3+ {[%emt 0:00:27][%mdl 64] Deflection} 36. Kg2 {[%emt 0:00:52]} Rxe3 {[%emt 0:00:18] Black mates.} 37. Rb8+ {[%emt 0:00:14]} Kh7 {[%emt 0:00:28]} 38. Qf1 {[%emt 0:00:17] [#]} Re2+ $3 {[%emt 0:00:20][%mdl 512] Weighted Error Value: White=0.66/Black=0.20 (precise)} 0-1

[Event "Prague Festival Open 2022"]
[Site "Prague"]
[Date "2022.06.13"]
[Round "5.2"]
[White "Stremavicius, Titas"]
[Black "Garriga Cazorla, Pere"]
[Result "1/2-1/2"]
[ECO "D33"]
[WhiteElo "2508"]
[BlackElo "2495"]
[Annotator "TA"]
[PlyCount "52"]
[EventDate "2022.06.10"]
[EventType "swiss"]
[EventCountry "CZE"]
[SourceTitle "playchess.com"]
[Source "ChessBase"]
[SourceQuality "1"]
[TimeControl "40/5400+30:1800+30"]

{[%evp 17,52,29,19,31,29,20,27,16,41,47,32,23,39,33,45,46,46,0,47,0,65,35,88,87,83,73,72,60,86,49,48,37,50,0,48,0,66]} 1. c4 {[%emt 0:00:02]} Nf6 {[%emt 0:02:30]} 2. Nc3 {[%emt 0:00:11]} c5 {[%emt 0:01:09]} 3. Nf3 {[%emt 0:00:08]} e6 {[%emt 0:00:05]} 4. g3 {[%emt 0:00:48]} d5 {[%emt 0:00:34]} 5. cxd5 {[%emt 0:00:09]} exd5 {[%emt 0:00:03]} 6. d4 {[%emt 0:00:11]} Nc6 {[%emt 0:00:04]} 7. Bg2 {[%emt 0:00:12]} cxd4 {[%emt 0:02:20]} 8. Nxd4 {[%emt 0:00:09]} Bc5 {[%emt 0:00:04]} 9. Nxc6 {[%emt 0:12:36]} bxc6 {[%emt 0:01:28]} 10. O-O {[%emt 0:00:17] D33: Tarrasch Defence: 6 g3 sidelines.} O-O {[%emt 0:02:50]} 11. Na4 {[%emt 0:02:10]} Bb6 {[%emt 0:00:07]} 12. Qc2 {[%emt 0:02:28] White has an edge.} Re8 {[%emt 0:34:29]} 13. Nxb6 {[%emt 0:18:29]} Qxb6 {[%emt 0:02:20]} 14. Be3 {[%emt 0:00:24] [#]} Rxe3 $146 {[%emt 0:02:34]} ({Predecessor:} 14... Qa6 15. Rfc1 Bd7 16. Qd3 Qb7 17. Bd4 Ne4 18. f3 Ng5 19. Rc2 h5 20. Rac1 Ne6 {0-1 (42) Harutyunian,T (2567)-Vaishali,R (2419) Tsaghkadzor 2021}) 15. fxe3 {[%emt 0:00:03]} Qxe3+ {[%emt 0:00:08]} 16. Kh1 {[%emt 0:00:05]} Bd7 {[%emt 0:00:14]} 17. Qc3 {[%emt 0:03:17]} (17. Rf4 $14) 17... Qe7 {[%emt 0:04:17]} (17... Qxe2 $11 {is more appropriate.} 18. Rae1 Qa6) 18. Rac1 {[%emt 0:00:30]} (18. e3 $14 {feels stronger.}) 18... h5 {[%emt 0:01:42]} ({Better is} 18... Qxe2 $11 19. Rce1 Qa6) 19. Rf4 {[%emt 0:07:31]} Re8 {[%emt 0:06:30] [#]} (19... Qxe2 $14 20. Re1 Qa6) 20. Bf3 $1 $16 {[%emt 0:00:09]} a6 {[%emt 0:02:24]} 21. Qc5 {[%emt 0:04:25]} Qe5 {[%emt 0:01:27]} 22. Qd4 {[%emt 0:01:17]} Qe7 {[%emt 0:00:44]} 23. b4 {[%emt 0:05:35]} Ng4 {[%emt 0:04:42]} 24. Qc5 {[%emt 0:09:46]} Qe5 {[%emt 0:05:07]} 25. Qd4 {[%emt 0:01:15]} Qe7 {[%emt 0:00:14]} 26. Qc5 {[%emt 0:00:06]} Qe5 $1 {[%emt 0:00:05] Weighted Error Value: White=0.16 (very precise) /Black=0.18 (very precise)} 1/2-1/2

[Event "Prague Festival Open 2022"]
[Site "Prague"]
[Date "2022.06.13"]
[Round "5.3"]
[White "Sedlak, Nikola"]
[Black "Huzman, Alexander"]
[Result "1/2-1/2"]
[ECO "D02"]
[WhiteElo "2476"]
[BlackElo "2541"]
[Annotator "TA"]
[PlyCount "33"]
[EventDate "2022.06.10"]
[EventType "swiss"]
[EventCountry "CZE"]
[SourceTitle "playchess.com"]
[Source "ChessBase"]
[SourceQuality "1"]
[TimeControl "40/5400+30:1800+30"]

{[%evp 11,33,18,18,21,25,26,19,22,19,20,17,14,12,22,23,8,31,29,21,29,33,28,22,22]} 1. d4 {[%emt 0:08:23]} Nf6 {[%emt 0:00:16]} 2. Nf3 {[%emt 0:00:11]} d5 {[%emt 0:00:28]} 3. Bf4 {[%emt 0:00:25]} c5 {[%emt 0:00:31]} 4. e3 {[%emt 0:00:11]} Nc6 {[%emt 0:00:12]} 5. Nbd2 {[%emt 0:00:16]} Bg4 {[%emt 0:00:17]} 6. c3 {[%emt 0:00:32]} e6 {[%emt 0:00:11]} 7. Qb3 {[%emt 0:00:27] D02: 1 d4 d5 2 Nf3 sidelines, including 2...Nf6 3 g3 and 2...Nf6 3 Bf4.} Qc8 {[%emt 0:00:55]} 8. Nh4 {[%emt 0:01:22]} Be7 {[%emt 0:03:58]} 9. h3 {[%emt 0:00:13]} Bh5 {[%emt 0:00:04]} 10. g4 {[%emt 0:00:41]} Bg6 {[%emt 0:00:06]} 11. Nxg6 {[%emt 0:01:01]} hxg6 {[%emt 0:00:09]} 12. Be2 {[%emt 0:06:20]} cxd4 {[%emt 0:12:08]} 13. exd4 {[%emt 0:02:49]} Qd7 {[%emt 0:00:20]} 14. O-O-O {[%emt 0:02:23]} Bd6 {[%emt 0:03:33]} 15. Be3 {[%emt 0:01:17] [#]} Qc7 $146 {[%emt 0:03:39]} ({Predecessor:} 15... O-O-O 16. Kb1 Kb8 17. h4 Na5 18. Qc2 Qc7 19. Rdg1 Bf4 20. Qd1 a6 21. h5 gxh5 22. gxh5 Rdg8 {½-½ (44) Pirs,M (2520)-Corbat,P (2406) ICCF email 2015}) 16. Kb1 {[%emt 0:00:59]} O-O-O {[%emt 0:00:32]} 17. h4 {[%emt 0:10:06] A rather calm draw.  Weighted Error Value: White=0.01 (flawless) /Black=0.02 (flawless)} 1/2-1/2

[Event "Prague Festival Open 2022"]
[Site "Prague"]
[Date "2022.06.13"]
[Round "5.4"]
[White "Stefansson, Hannes"]
[Black "Hilby, Craig"]
[Result "0-1"]
[ECO "C11"]
[WhiteElo "2534"]
[BlackElo "2420"]
[Annotator "TA"]
[PlyCount "91"]
[EventDate "2022.06.10"]
[EventType "swiss"]
[EventCountry "CZE"]
[SourceTitle "playchess.com"]
[Source "ChessBase"]
[SourceQuality "1"]
[TimeControl "40/5400+30:1800+30"]

{[%evp 15,91,0,0,-41,-41,-45,-35,-47,-22,-30,-25,-31,-22,-57,-56,-58,-47,-81,-29,-30,-37,-29,-31,-42,-47,-19,-33,-62,-29,-24,-34,-35,-17,0,0,0,52,15,8,0,0,0,0,0,0,7,2,0,0,0,0,0,0,0,0,-298,-300,-199,204,-55,-55,-55,-62,-101,-132,-64,-8,-349,-345,-290,-13,-281,-273,-29968,-10696,-29973,-29974,-29977]} 1. e4 {[%emt 0:00:08]} e6 {[%emt 0:00:08]} 2. d4 {[%emt 0:00:16]} d5 {[%emt 0:00:05]} 3. Nc3 {[%emt 0:00:33]} Nf6 {[%emt 0:00:16]} 4. e5 {[%emt 0:00:54]} Nfd7 {[%emt 0:00:14]} 5. f4 {[%emt 0:00:36]} c5 {[%emt 0:00:13]} 6. Nf3 {[%emt 0:00:38]} Nc6 {[%emt 0:00:19]} 7. Be3 {[%emt 0:03:22]} cxd4 {[%emt 0:00:54]} 8. Nxd4 {[%emt 0:00:59]} Qb6 {[%emt 0:00:21]} 9. Bb5 {[%emt 0:17:07] C11: French: Classical System: 4 e5 and 4 Bg5 dxe4.} a6 $1 {[%emt 0:16:06]} 10. Na4 {[%emt 0:08:42]} Qa5+ {[%emt 0:02:48]} 11. Bd2 {[%emt 0:00:10] Black is slightly better.} Qc7 {[%emt 0:02:06]} (11... Nb4 $5 {[%cal Ra6b5]} 12. Bxd7+ Bxd7 $11) 12. Bxc6 {[%emt 0:00:07]} bxc6 {[%emt 0:00:06][%cal Bb7c6,Bc6c5][%mdl 32] [#]} 13. c4 $146 {[%emt 0:03:35]} ({Predecessor:} 13. O-O c5 14. Nf3 Qc6 15. c4 d4 16. b3 Bb7 17. Nb2 Be7 18. Re1 g5 19. Qe2 {1-0 (51) Rubino,W (2173)-Safa,C (1857) Avoine 2016}) 13... c5 {[%emt 0:11:59]} 14. Nf3 {[%emt 0:00:26]} d4 {[%emt 0:01:57]} 15. O-O {[%emt 0:02:28]} Be7 {[%emt 0:01:28]} 16. Qe1 {[%emt 0:02:25]} Bb7 {[%emt 0:03:14]} ({Better is} 16... a5 $17) 17. Ba5 $11 {[%emt 0:00:58]} Qc6 {[%emt 0:01:51]} 18. b3 {[%emt 0:00:41]} f5 {[%emt 0:11:37]} 19. exf6 {[%emt 0:06:30]} gxf6 {[%emt 0:00:41]} 20. Qh4 {[%emt 0:14:53]} h5 {[%emt 0:00:42]} 21. Rae1 {[%emt 0:03:01]} Kf7 $1 {[%emt 0:01:05]} 22. Qh3 {[%emt 0:00:47][%cal Of3g5] And now Ng5+! would win.} Rag8 {[%emt 0:01:42] Prevents Ng5+.} 23. Nb2 {[%emt 0:01:01]} Rg4 {[%emt 0:07:36]} 24. Nd3 {[%emt 0:00:28]} Bd6 {[%emt 0:00:57]} 25. Bd2 {[%emt 0:32:15]} Ke7 {[%emt 0:03:32]} ({Black should try} 25... Bc7 $11) 26. Re2 {[%emt 0:00:00]} Rhg8 {[%emt 0:02:30]} 27. Kh1 {[%emt 0:00:00]} (27. Qxh5 Qxf3 28. Rxf3 Bxf3 $17) 27... Nf8 {[%emt 0:04:06]} 28. Be1 {[%emt 0:00:00]} (28. Qxh5 $2 Qxf3 $3 {[%mdl 512]} 29. Rxf3 (29. gxf3 $2 Bxf3+ 30. Rg2 Bxg2+ 31. Kg1 Bh3+ 32. Kf2 Rg2+ 33. Ke1 Bg4 $19) 29... Bxf3 $19) 28... Bxf4 {[%emt 0:09:57]} 29. Qxh5 {[%emt 0:00:00] aiming for Bh4.} Bd6 {[%emt 0:01:29][%cal Oc6f3] Hoping for ...Qxf3!} 30. Bh4 {[%emt 0:00:00]} Nd7 {[%emt 0:06:03]} 31. Qf5 {[%emt 0:00:00]} Qe4 {[%emt 0:05:28]} 32. Rxe4 {[%emt 0:00:00]} Bxe4 {[%emt 0:00:02][%cal Bb7e4,Be4d3,Bd3c4][%mdl 32]} 33. Qh5 {[%emt 0:00:00] Threatens to win with Nf2.} Bxd3 {[%emt 0:01:22]} 34. Re1 {[%emt 0:00:00]} Rxg2 {[%emt 0:01:12] White must now prevent ...R8g7.} (34... Be4 $2 35. Rxe4 $1 {[%mdl 512]} Rxe4 36. Qh7+ Kd8 37. Qxe4 $18) 35. b4 $2 {[%emt 0:00:46][%mdl 8192]} (35. Qd5 $2 Be2 36. Rxe2 Rxe2 $19) (35. Bg3 $1 $11 {and White has nothing to worry.} Bxg3 36. Rxe6+ Kxe6 37. Qd5+ Ke7 38. Kxg2) 35... Bxc4 $19 {[%emt 0:02:21]} 36. bxc5 {[%emt 0:00:23]} Bf4 {[%emt 0:00:26][%mdl 8192] Chess con chili.} (36... Nxc5 37. Bg3 R2xg3 38. hxg3 $15) (36... Bxc5 $19 {and all is fine.} 37. Bg3 R8xg3 38. hxg3 Rxa2) 37. Bg3 $2 {[%emt 0:02:34]} ({White has to play} 37. c6 $18 Ne5 38. Bxf6+ (38. Rxe5 Bxe5 39. Bxf6+ Bxf6 $11) 38... Kxf6 39. Qh4+ (39. Re4 $2 Bd5 $19) 39... Bg5 40. Qxd4) 37... Bxg3 $15 {[%emt 0:00:16] A strong pair of Bishops.} (37... R2xg3 $2 38. hxg3 Rxg3 39. Qh7+ (39. Nxd4 Ne5 $11) 39... Kf8 {[#]} 40. Re4 $1 (40. Qxd7 Bd5 $11) 40... Rxf3 41. Rxd4 $18 (41. Qxd7 Bd5 $11)) 38. Qh7+ {[%emt 0:00:09]} (38. hxg3 $2 R2xg3 39. c6 (39. Nxd4 $2 Bd5+ 40. Kh2 Rg2+ 41. Kh3 R8g3+ 42. Kh4 Rh2+ 43. Kxg3 Rxh5 $19) 39... Ne5 40. Nxe5 Bd5+ 41. Kh2 Rg2+ 42. Kh3 R8g3+ 43. Kh4 Rh2+ 44. Kxg3 Rxh5 $19) 38... Kf8 {[%emt 0:00:02]} 39. hxg3 {[%emt 0:00:26]} R2xg3 {[%emt 0:00:17]} 40. c6 {[%emt 0:02:32]} ({Don't blunder} 40. Qxd7 $2 Rh8+ 41. Nh2 Bd5+ 42. Qxd5 exd5 $19) 40... R3g7 {[%emt 0:01:44]} (40... Nb6 $1 $15 41. Qh4 (41. Nxd4 $2 Bd5+ 42. Kh2 Rg2+ 43. Kh3 R8g3+ 44. Kh4 Rh2+ 45. Kxg3 Rxh7 $19) (41. Qh6+ $2 Ke7 $19) 41... Rxf3 42. Qh6+ Ke8 43. Qh5+ Kd8 44. Qxf3 Bd5) 41. Qh4 $2 {[%emt 0:12:00][%mdl 8192]} (41. Qh6 $11 Bd5 42. cxd7 Bxf3+ 43. Kh2) 41... Bd5 $19 {[%emt 0:02:10]} 42. cxd7 {[%emt 0:05:29]} Bxf3+ {[%emt 0:01:49]} 43. Kh2 {[%emt 0:00:08]} Ke7 {[%emt 0:00:33]} 44. Rf1 $2 {[%emt 0:02:15]} (44. d8=Q+ $19 Rxd8 45. Rg1) 44... Bd5 {[%emt 0:01:58]} 45. Rxf6 {[%emt 0:04:38]} Kxd7 {[%emt 0:00:10]} 46. Qh5 {[%emt 0:02:29] Weighted Error Value: White=0.70/Black=0.17 (very precise)} 0-1

[Event "Prague Festival Open 2022"]
[Site "Prague"]
[Date "2022.06.13"]
[Round "5.5"]
[White "Romanishin, Oleg M"]
[Black "Iniyan, P."]
[Result "0-1"]
[ECO "D15"]
[WhiteElo "2400"]
[BlackElo "2518"]
[Annotator "TA"]
[PlyCount "72"]
[EventDate "2022.06.10"]
[EventType "swiss"]
[EventCountry "CZE"]
[SourceTitle "playchess.com"]
[Source "ChessBase"]
[SourceQuality "1"]
[TimeControl "40/5400+30:1800+30"]

{[%evp 11,72,0,-2,-32,0,0,-4,-17,-5,-11,-43,-52,8,-133,-133,-141,-87,-66,-30,-108,-67,-72,0,0,0,-87,0,0,0,0,12,14,0,-7,31,0,0,-48,0,-107,-108,-125,-113,-81,-85,-125,-69,-117,-105,-273,-285,-283,-279,-275,-272,-347,-346,-342,-339,-481,-490,-452,-423]} 1. d4 {[%emt 0:01:07]} Nf6 {[%emt 0:08:14]} 2. Nf3 {[%emt 0:00:03]} d5 {[%emt 0:00:09]} 3. c4 {[%emt 0:00:05]} c6 {[%emt 0:00:05]} 4. Nc3 {[%emt 0:03:11][%cal Bb1c3,Bc3e2,Be2f4,Bf4h5][%mdl 32]} dxc4 {[%emt 0:00:08]} 5. e3 {[%emt 0:00:58]} b5 {[%emt 0:00:07]} 6. a4 {[%emt 0:00:23]} b4 {[%emt 0:00:09]} 7. Ne2 {[%emt 0:00:07] D15: Slav Defence: 4 Nc3 a6 and gambit lines after 4 Nc3 dxc4.} a5 {[%emt 0:00:06] [#]} 8. Nf4 $146 {[%emt 0:05:48]} ({Predecessor:} 8. Ng3 Ba6 9. Ne5 e6 10. Be2 Nbd7 11. Nxc4 Be7 12. O-O O-O 13. Qc2 c5 14. b3 cxd4 15. exd4 {1-0 (53) Tsydypov,Z (2524)-Khachiyan,M (2521) Chess.com INT 2018}) 8... Ba6 {[%emt 0:00:10]} 9. Ne5 {[%emt 0:00:47] The position is equal.} g5 {[%emt 0:00:09][%cal Bg7g5,Bg5g4][%mdl 32]} 10. Nh5 {[%emt 0:06:22]} (10. Nh3 $5 {[%cal Rh3g5]}) 10... Qd5 {[%emt 0:07:55]} 11. h4 {[%emt 0:03:29]} Nfd7 {[%emt 0:04:54]} (11... Nxh5 $1 $15 12. Qxh5 Bg7 13. Qxg5 Bxe5 14. Qxe5 Qxe5 15. dxe5 Nd7) 12. Nf3 {[%emt 0:13:35]} (12. Nxd7 $1 $11 {keeps the balance.} Nxd7 13. hxg5) 12... g4 $17 {[%emt 0:02:31][%csl LRf3,LRh5]} 13. Nf4 {[%emt 0:08:25]} Qd6 {[%emt 0:05:23]} (13... Qf5 $142 14. Ng5 h6) 14. Nd2 {[%emt 0:12:51]} e5 $1 {[%emt 0:00:06]} 15. Ne4 {[%emt 0:09:42]} (15. Nh5 $1 $11) 15... Qe7 {[%emt 0:00:04]} 16. Nh5 {[%emt 0:00:09]} ({Much weaker is} 16. dxe5 Nxe5 17. Be2 Nbd7 $17) 16... f5 {[%emt 0:01:29]} ({Better is} 16... Rg8 $1 $17) 17. Neg3 $11 {[%emt 0:00:50]} Qf7 {[%emt 0:05:28]} 18. Be2 {[%emt 0:04:59]} (18. f3 $1 $11) 18... c5 {[%emt 0:06:10]} (18... Rg8 $1 $17 19. dxe5 Nxe5) 19. dxe5 {[%emt 0:06:18] f4 is the strong threat.} Nxe5 {[%emt 0:01:03]} 20. e4 {[%emt 0:03:19]} Nbd7 {[%emt 0:11:17] Active counter play!} 21. O-O {[%emt 0:01:36]} fxe4 {[%emt 0:03:03]} 22. Bxg4 {[%emt 0:01:42]} Nxg4 {[%emt 0:03:49]} 23. Qxg4 {[%emt 0:00:12]} (23. Bg5 $5 {[%cal Rg3e4]} Nge5 24. Nxe4 $18) 23... O-O-O $1 {[%emt 0:00:25]} 24. Bg5 {[%emt 0:01:42]} (24. Nxe4 $11 c3 25. Re1) 24... Rg8 {[%emt 0:00:13]} (24... Re8 $1 $15 {was preferrable.} 25. Rfd1 Qe6 26. Qxe6 Rxe6) 25. Qxe4 {[%emt 0:09:14]} (25. Nxe4 $11 h6 26. Rfd1 hxg5 27. Nhf6) 25... Bb7 $17 {[%emt 0:00:07] The board is on fire.} 26. Qc2 {[%emt 0:00:13]} ({Don't blunder} 26. Qf5 $2 Qxf5 27. Nxf5 h6 $1 $19) 26... Re8 {[%emt 0:04:33] White must now prevent ...h6.} 27. Rfe1 {[%emt 0:00:21]} Rxe1+ {[%emt 0:00:17]} 28. Rxe1 {[%emt 0:00:08]} Kb8 {[%emt 0:00:52]} (28... Bc6 $17 29. Qe2 h6) 29. Qf5 {[%emt 0:01:49] [#]} (29. Qd2 $15) 29... Qxf5 $1 $40 {[%emt 0:00:06][%mdl 128] Black wants a kill.} 30. Re8+ $2 {[%emt 0:00:04] Now White is beyond hope.} (30. Nxf5 $17 {was the only defense.} c3 31. bxc3) 30... Ka7 $19 {[%emt 0:00:39]} 31. Nxf5 {[%emt 0:00:11] Pair of Knights!} c3 {[%emt 0:02:55]} 32. bxc3 {[%emt 0:00:08]} b3 {[%emt 0:00:04][%cal Bb4b3,Bb3b2][%mdl 32] Threatens to win with ...b2.} 33. Nhg3 {[%emt 0:00:34]} b2 {[%emt 0:03:11]} 34. Re1 {[%emt 0:00:05]} Nb6 {[%emt 0:00:05]} 35. Ne3 {[%emt 0:01:22]} (35. Rb1 $142 Nxa4 36. c4) 35... Bg7 {[%emt 0:01:26]} 36. Rb1 {[%emt 0:01:41]} Nxa4 {[%emt 0:00:08] Weighted Error Value: White=0.42/Black=0.17 (very precise)} 0-1

[Event "Prague Festival Open 2022"]
[Site "Prague"]
[Date "2022.06.13"]
[Round "5.6"]
[White "Santiago, Yago De Moura"]
[Black "Rasik, Vitezslav"]
[Result "1-0"]
[ECO "E94"]
[WhiteElo "2498"]
[BlackElo "2433"]
[Annotator "TA"]
[PlyCount "75"]
[EventDate "2022.06.10"]
[EventType "swiss"]
[EventCountry "CZE"]
[SourceTitle "playchess.com"]
[Source "ChessBase"]
[SourceQuality "1"]
[TimeControl "40/5400+30:1800+30"]

{[%evp 22,75,91,69,102,77,87,86,83,81,79,73,117,54,62,50,59,34,38,17,7,0,48,16,10,15,31,19,52,65,61,-48,-31,-23,0,-87,114,99,135,125,113,126,131,66,349,356,333,343,353,343,29984,29985,29985,29986,29997,29998]} 1. d4 {[%emt 0:00:07]} d6 {[%emt 0:04:15]} 2. Nf3 {[%emt 0:00:48]} g6 {[%emt 0:00:26]} 3. c4 {[%emt 0:00:17]} Bg7 {[%emt 0:00:10]} 4. Nc3 {[%emt 0:00:10]} Nf6 {[%emt 0:00:11]} 5. e4 {[%emt 0:00:10]} O-O {[%emt 0:00:15]} 6. Be2 {[%emt 0:00:14]} Na6 {[%emt 0:01:11]} 7. O-O {[%emt 0:09:46]} e5 {[%emt 0:00:16]} 8. Be3 {[%emt 0:00:09]} c6 {[%emt 0:00:30]} 9. d5 {[%emt 0:01:57]} Ng4 {[%emt 0:00:14]} 10. Bg5 {[%emt 0:00:55][%cal Be3g5,Bg5h4,Bh4f2][%mdl 32]} f6 {[%emt 0:00:10]} 11. Bh4 {[%emt 0:01:32]} c5 {[%emt 0:01:26]} 12. Ne1 {[%emt 0:01:13]} h5 {[%emt 0:03:44] E94: King's Indian: Classical: 6 Be2 e5 7 0-0: Various Black 7th moves.} 13. Nd3 {[%emt 0:07:08]} Nh6 {[%emt 0:03:31]} 14. f3 {[%emt 0:02:08]} Nf7 {[%emt 0:06:44] White is better.} 15. a3 {[%emt 0:02:19] White is more active.} Bh6 {[%emt 0:02:30]} 16. Bf2 {[%emt 0:00:45]} f5 {[%emt 0:02:52]} 17. b4 {[%emt 0:00:33]} (17. exf5 $1 $16 Bxf5 18. Kh1) 17... b6 $14 {[%emt 0:01:06]} 18. bxc5 {[%emt 0:01:35]} (18. Qe1 {keeps more tension.} f4 19. Bd1 Bd7 20. h4) 18... Nxc5 {[%emt 0:02:27]} 19. Nxc5 {[%emt 0:03:03]} bxc5 {[%emt 0:02:11]} 20. exf5 {[%emt 0:04:38]} gxf5 {[%emt 0:05:17] [#]} 21. Kh1 $146 {[%emt 0:09:35]} ({Predecessor:} 21. Rb1 Kh8 22. Kh1 Rg8 23. Qe1 Qg5 24. Rg1 Qf6 25. Nb5 Bd7 26. Nc7 Rab8 27. Qa5 {0-1 (46) Feller,S (2657)-Maze,S (2571) Nice 2011}) 21... Bd7 {[%emt 0:07:29]} (21... Rb8 $11) 22. g4 {[%emt 0:10:33]} e4 {[%emt 0:22:43] Hoping for ...exf3.} 23. gxf5 {[%emt 0:04:44]} (23. fxe4 fxg4 24. Rb1 Bg7 $17) 23... e3 {[%emt 0:02:04]} 24. Bg3 {[%emt 0:00:17][%cal Of5f6]} (24. Rg1+ Kh8 25. Bg3 Rg8 $15) 24... h4 {[%emt 0:04:58]} 25. Be1 {[%emt 0:00:19]} Bxf5 {[%emt 0:01:32]} 26. f4 {[%emt 0:00:38]} (26. Bd3 $14 Bxd3 27. Qxd3 (27. Rg1+ Kh8 $15)) 26... Bg7 $15 {[%emt 0:03:56]} 27. Rg1 {[%emt 0:07:29]} Nh6 {[%emt 0:00:41]} 28. Bd3 {[%emt 0:01:24]} (28. Ra2 $1 $11) 28... Qe7 $2 {[%emt 0:06:11]} (28... Qd7 $1 $17 {and life is bright. Threatens to win with ...Bg4.} 29. Bxf5 (29. Bxh4 Bg4 $17) 29... Qxf5) 29. Ra2 $1 $36 {[%emt 0:05:23][%cal Ba1a2,Ba2g2,Bg2g6,Bg6h6,Bh6h8][%mdl 2080] Rag2 is the strong threat. Keeping Black busy.} Rae8 {[%emt 0:09:46]} 30. Rag2 {[%emt 0:06:16]} Rf7 {[%emt 0:00:05] [#]} 31. Bxf5 {[%emt 0:00:29]} Nxf5 {[%emt 0:00:02] [#]} 32. Qh5 {[%emt 0:00:14]} (32. Qf3 $1 $16) 32... a6 $2 {[%emt 0:02:30][%mdl 8192] This move loses the game for Black.} (32... Qf6 $1 $14) 33. Rg6 $18 {[%emt 0:01:52]} (33. Rg5 Qf6 34. h3 (34. Bxh4 Qxc3 35. Rxf5 Ref8 $14) 34... e2 $16) 33... Qd7 {[%emt 0:01:54]} 34. R1g5 {[%emt 0:03:31]} (34. Bxh4 Nxh4 35. Qxh4 e2 $18) 34... e2 {[%emt 0:01:22]} 35. Nxe2 {[%emt 0:06:11] Black must now prevent Bc3. The board is on fire.} Nd4 $2 {[%emt 0:01:31] [#]} (35... Re3 $18 36. Bd2 (36. Bc3 Qe8 $18) 36... Qe7 37. Bxe3 (37. Rxf5 Rxe2 38. Re5 Rxe5 $14) 37... Qe4+ 38. Kg1 Qxe3+ 39. Kf1 Qh3+ 40. Ke1 Rb7 41. Rxg7+ (41. Rxf5 Rb1+ 42. Kd2 Rb2+ 43. Ke1 Rb1+ 44. Kd2 Rb2+ 45. Ke1 Rb1+ $11) 41... Nxg7) 36. Rh6 $1 {[%emt 0:01:14][%csl Gh5][%cal Rh6h8] White mates.} Kf8 {[%emt 0:00:42] [#]} 37. Bxh4 $1 {[%emt 0:00:31]} Rxe2 {[%emt 0:01:27] [#]} (37... Rf6 38. Rh8+) 38. Rh8+ $1 {[%emt 0:00:15][%mdl 512] Weighted Error Value: White=0.19 (very precise) /Black=0.71} 1-0